[Event "Late-Titled-Tuesday-Blitz-March-26-2024"]
[Site "Chess.com"]
[Date "2024.03.26"]
[Round "1"]
[White "GHANDEEVAM2003"]
[Black "Good_Knight_Kiss"]
[Result "1-0"]
[WhiteElo "3037"]
[BlackElo "2519"]
[TimeControl "180+1"]
[EndTime "14:02:42 PDT"]
[Termination "GHANDEEVAM2003 won by resignation"]

1. b3 {[%clk 0:02:57.9]} 1... g6 {[%clk 0:02:59]} 2. Bb2 {[%clk 0:02:56.6]} 2...
Nf6 {[%clk 0:02:59.7]} 3. g3 {[%clk 0:02:57.1]} 3... Bg7 {[%clk 0:02:59.5]} 4.
Bg2 {[%clk 0:02:57.3]} 4... d6 {[%clk 0:02:59.1]} 5. d4 {[%clk 0:02:56.3]} 5...
O-O {[%clk 0:02:58.1]} 6. Nf3 {[%clk 0:02:56.9]} 6... e5 {[%clk 0:02:57]} 7.
dxe5 {[%clk 0:02:56.5]} 7... Ng4 {[%clk 0:02:57.3]} 8. O-O {[%clk 0:02:54]} 8...
Nc6 {[%clk 0:02:57]} 9. Qc1 {[%clk 0:02:52.9]} 9... dxe5 {[%clk 0:02:50.3]} 10.
h3 {[%clk 0:02:51.9]} 10... Nh6 {[%clk 0:02:49.2]} 11. Rd1 {[%clk 0:02:50.8]}
11... Bd7 {[%clk 0:02:46.9]} 12. Nc3 {[%clk 0:02:47.5]} 12... Qc8 {[%clk
0:02:45.2]} 13. Nd5 {[%clk 0:02:40.7]} 13... Re8 {[%clk 0:02:24.5]} 14. Ng5
{[%clk 0:02:37.4]} 14... Nf5 {[%clk 0:02:04.9]} 15. Ne4 {[%clk 0:02:36]} 15...
Qd8 {[%clk 0:01:47.6]} 16. Ndf6+ {[%clk 0:02:34.6]} 16... Bxf6 {[%clk
0:01:37.6]} 17. Rxd7 {[%clk 0:02:35]} 1-0

[Event "Late-Titled-Tuesday-Blitz-March-26-2024"]
[Site "Chess.com"]
[Date "2024.03.26"]
[Round "1"]
[White "Fandorine"]
[Black "Pawngobblerx2000"]
[Result "1-0"]
[WhiteElo "2914"]
[BlackElo "2487"]
[TimeControl "180+1"]
[EndTime "14:03:06 PDT"]
[Termination "Fandorine won by resignation"]

1. e4 {[%clk 0:02:59.2]} 1... c5 {[%clk 0:02:59.3]} 2. Nf3 {[%clk 0:02:58.7]}
2... d6 {[%clk 0:02:59.9]} 3. Nc3 {[%clk 0:02:55.5]} 3... Nf6 {[%clk 0:02:59.2]}
4. e5 {[%clk 0:02:55.4]} 4... dxe5 {[%clk 0:02:59.2]} 5. Nxe5 {[%clk 0:02:56.3]}
5... Nbd7 {[%clk 0:02:58.7]} 6. d4 {[%clk 0:02:52.1]} 6... e6 {[%clk 0:02:54.6]}
7. Bf4 {[%clk 0:02:49.5]} 7... cxd4 {[%clk 0:02:51.1]} 8. Qxd4 {[%clk
0:02:47.3]} 8... Be7 {[%clk 0:02:48.4]} 9. O-O-O {[%clk 0:02:45.6]} 9... O-O
{[%clk 0:02:45.7]} 10. Bb5 {[%clk 0:02:42.2]} 10... Nxe5 {[%clk 0:02:43.2]} 11.
Qxd8 {[%clk 0:02:41.9]} 11... Rxd8 {[%clk 0:02:42.3]} 12. Bxe5 {[%clk
0:02:42.5]} 12... a6 {[%clk 0:02:39]} 13. Be2 {[%clk 0:02:36.4]} 13... Bd7
{[%clk 0:02:36.3]} 14. Bf3 {[%clk 0:02:31.6]} 14... Bc6 {[%clk 0:02:31.8]} 15.
Bxc6 {[%clk 0:02:31.7]} 15... bxc6 {[%clk 0:02:31.8]} 16. Bxf6 {[%clk
0:02:26.8]} 16... Bxf6 {[%clk 0:02:30.7]} 17. Ne4 {[%clk 0:02:25.7]} 17... Kf8
{[%clk 0:02:29.8]} 18. Nxf6 {[%clk 0:02:20.1]} 18... gxf6 {[%clk 0:02:29.7]} 19.
Rxd8+ {[%clk 0:02:19.9]} 19... Rxd8 {[%clk 0:02:29.4]} 20. Rd1 {[%clk
0:02:20.8]} 20... Rb8 {[%clk 0:02:24.5]} 21. Rd6 {[%clk 0:02:11.3]} 21... Rb6
{[%clk 0:02:22.5]} 22. c4 {[%clk 0:02:11.1]} 22... Ke7 {[%clk 0:02:13.5]} 23. c5
{[%clk 0:02:10.2]} 23... f5 {[%clk 0:02:09.7]} 24. Rxe6+ {[%clk 0:01:56.8]}
24... fxe6 {[%clk 0:02:09.7]} 25. cxb6 {[%clk 0:01:57.7]} 25... Kd7 {[%clk
0:02:09.2]} 26. b4 {[%clk 0:01:56.9]} 1-0

[Event "Late-Titled-Tuesday-Blitz-March-26-2024"]
[Site "Chess.com"]
[Date "2024.03.26"]
[Round "1"]
[White "tolimachess"]
[Black "moro182"]
[Result "0-1"]
[WhiteElo "2471"]
[BlackElo "2893"]
[TimeControl "180+1"]
[EndTime "14:03:23 PDT"]
[Termination "moro182 won by resignation"]

1. e4 {[%clk 0:03:00.9]} 1... g6 {[%clk 0:02:59.6]} 2. d4 {[%clk 0:03:00.4]}
2... Bg7 {[%clk 0:03:00.5]} 3. Nc3 {[%clk 0:03:01.2]} 3... a6 {[%clk 0:02:58.7]}
4. Be3 {[%clk 0:02:57]} 4... b5 {[%clk 0:02:58.4]} 5. Qd2 {[%clk 0:02:57.6]}
5... Bb7 {[%clk 0:02:58.5]} 6. f3 {[%clk 0:02:58]} 6... Nf6 {[%clk 0:02:58.5]}
7. h4 {[%clk 0:02:56.3]} 7... h5 {[%clk 0:02:57.8]} 8. Nh3 {[%clk 0:02:55.7]}
8... d6 {[%clk 0:02:58.3]} 9. a4 {[%clk 0:02:55.5]} 9... b4 {[%clk 0:02:58.2]}
10. Ne2 {[%clk 0:02:55.4]} 10... a5 {[%clk 0:02:58.6]} 11. Ng5 {[%clk
0:02:53.9]} 11... e6 {[%clk 0:02:58.6]} 12. Nf4 {[%clk 0:02:51.8]} 12... Qe7
{[%clk 0:02:56.4]} 13. e5 {[%clk 0:02:46.5]} 13... Nd5 {[%clk 0:02:51.1]} 14.
Nxd5 {[%clk 0:02:34.7]} 14... Bxd5 {[%clk 0:02:52]} 15. c4 {[%clk 0:02:31.4]}
15... bxc3 {[%clk 0:02:51.3]} 16. bxc3 {[%clk 0:02:32.3]} 16... dxe5 {[%clk
0:02:50.1]} 17. dxe5 {[%clk 0:02:28.9]} 17... Bxe5 {[%clk 0:02:50.6]} 18. Bd4
{[%clk 0:02:15.2]} 18... Bxd4 {[%clk 0:02:50.3]} 19. Qxd4 {[%clk 0:02:16.1]}
19... O-O {[%clk 0:02:50.2]} 20. c4 {[%clk 0:02:12.3]} 20... Bb7 {[%clk
0:02:42.5]} 21. Bd3 {[%clk 0:02:12.6]} 21... Rd8 {[%clk 0:02:38.1]} 22. Qc3
{[%clk 0:02:08.2]} 22... Qb4 {[%clk 0:02:35.9]} 23. Qxb4 {[%clk 0:02:05.2]}
23... axb4 {[%clk 0:02:36.8]} 24. Ke2 {[%clk 0:02:01.4]} 24... Nc6 {[%clk
0:02:35.8]} 25. Ne4 {[%clk 0:01:55.6]} 25... Nd4+ {[%clk 0:02:34.4]} 26. Ke3
{[%clk 0:01:55.9]} 26... Nf5+ {[%clk 0:02:33.9]} 27. Ke2 {[%clk 0:01:56.3]}
27... Bxe4 {[%clk 0:02:33.6]} 28. Bxe4 {[%clk 0:01:55.2]} 28... Ng3+ {[%clk
0:02:32.5]} 29. Ke3 {[%clk 0:01:55.9]} 29... Nxh1 {[%clk 0:02:27.1]} 30. Bxa8
{[%clk 0:01:56.5]} 30... Rxa8 {[%clk 0:02:27.4]} 31. Rxh1 {[%clk 0:01:57]} 31...
Rxa4 {[%clk 0:02:27.9]} 32. Rb1 {[%clk 0:01:54.7]} 32... c5 {[%clk 0:02:26.2]}
33. g4 {[%clk 0:01:52]} 33... Ra3+ {[%clk 0:02:22.1]} 34. Kf4 {[%clk 0:01:51.9]}
34... hxg4 {[%clk 0:02:21]} 35. fxg4 {[%clk 0:01:52.8]} 35... Rc3 {[%clk
0:02:20.5]} 0-1

[Event "Late-Titled-Tuesday-Blitz-March-26-2024"]
[Site "Chess.com"]
[Date "2024.03.26"]
[Round "1"]
[White "Evandro_Barbosa"]
[Black "KVAIDAN"]
[Result "1-0"]
[WhiteElo "2657"]
[BlackElo "2348"]
[TimeControl "180+1"]
[EndTime "14:03:52 PDT"]
[Termination "Evandro_Barbosa won by resignation"]

1. e4 {[%clk 0:03:00.9]} 1... e5 {[%clk 0:03:00.3]} 2. Nf3 {[%clk 0:03:00.6]}
2... d5 {[%clk 0:03:00.6]} 3. d4 {[%clk 0:02:59.1]} 3... dxe4 {[%clk 0:03:00.3]}
4. Nxe5 {[%clk 0:02:59]} 4... Bd6 {[%clk 0:03:00.8]} 5. Nc4 {[%clk 0:02:57.8]}
5... Nf6 {[%clk 0:03:00.6]} 6. Nxd6+ {[%clk 0:02:56.4]} 6... Qxd6 {[%clk
0:03:00.7]} 7. c3 {[%clk 0:02:53.3]} 7... Nc6 {[%clk 0:02:59.1]} 8. Be2 {[%clk
0:02:51.1]} 8... Bf5 {[%clk 0:02:56.3]} 9. Nd2 {[%clk 0:02:46.3]} 9... O-O-O
{[%clk 0:02:55.2]} 10. Nc4 {[%clk 0:02:44.9]} 10... Qe7 {[%clk 0:02:51.8]} 11.
Bg5 {[%clk 0:02:35.5]} 11... h6 {[%clk 0:02:50.6]} 12. Bh4 {[%clk 0:02:35.4]}
12... g5 {[%clk 0:02:48.8]} 13. Bg3 {[%clk 0:02:35.1]} 13... Nd5 {[%clk
0:02:49.2]} 14. Ne3 {[%clk 0:02:32.2]} 14... Nxe3 {[%clk 0:02:42.5]} 15. fxe3
{[%clk 0:02:32.2]} 15... Be6 {[%clk 0:02:33.7]} 16. Qa4 {[%clk 0:02:25.5]} 16...
Bd7 {[%clk 0:02:16.8]} 17. d5 {[%clk 0:02:10.5]} 17... Nb8 {[%clk 0:02:05.6]}
18. Qxa7 {[%clk 0:02:03.4]} 18... f5 {[%clk 0:02:05.7]} 19. O-O-O {[%clk
0:01:42.7]} 19... Rhf8 {[%clk 0:01:59.2]} 20. d6 {[%clk 0:01:42.6]} 20... Qe6
{[%clk 0:01:40.1]} 21. dxc7 {[%clk 0:01:31.7]} 1-0

[Event "Late-Titled-Tuesday-Blitz-March-26-2024"]
[Site "Chess.com"]
[Date "2024.03.26"]
[Round "1"]
[White "Slovineanu"]
[Black "Azerichess"]
[Result "0-1"]
[WhiteElo "2523"]
[BlackElo "3038"]
[TimeControl "180+1"]
[EndTime "14:04:07 PDT"]
[Termination "Azerichess won by resignation"]

1. d4 {[%clk 0:02:56.7]} 1... Nf6 {[%clk 0:02:58.3]} 2. Nf3 {[%clk 0:02:56.7]}
2... d5 {[%clk 0:02:57.8]} 3. c4 {[%clk 0:02:55.8]} 3... c5 {[%clk 0:02:56.1]}
4. cxd5 {[%clk 0:02:54.5]} 4... cxd4 {[%clk 0:02:56.2]} 5. Nxd4 {[%clk 0:02:47]}
5... Qxd5 {[%clk 0:02:55.6]} 6. Nc3 {[%clk 0:02:46.3]} 6... Qa5 {[%clk
0:02:55.9]} 7. g3 {[%clk 0:02:39.3]} 7... e5 {[%clk 0:02:55.9]} 8. Nb3 {[%clk
0:02:38.6]} 8... Qc7 {[%clk 0:02:56.3]} 9. Bg2 {[%clk 0:02:35.5]} 9... Bb4
{[%clk 0:02:56.6]} 10. O-O {[%clk 0:02:33.9]} 10... Bxc3 {[%clk 0:02:56.1]} 11.
bxc3 {[%clk 0:02:33.9]} 11... O-O {[%clk 0:02:56.6]} 12. Bg5 {[%clk 0:02:14.3]}
12... Nbd7 {[%clk 0:02:56.5]} 13. Qc2 {[%clk 0:02:07.7]} 13... a5 {[%clk
0:02:54.1]} 14. a4 {[%clk 0:02:04.3]} 14... h6 {[%clk 0:02:52.2]} 15. Bd2 {[%clk
0:02:03.5]} 15... Nb6 {[%clk 0:02:50.9]} 16. Be3 {[%clk 0:01:54.1]} 16... Nc4
{[%clk 0:02:50.1]} 17. Bc5 {[%clk 0:01:54]} 17... Rd8 {[%clk 0:02:46.8]} 18.
Rfd1 {[%clk 0:01:49.4]} 18... Be6 {[%clk 0:02:46.5]} 19. Rxd8+ {[%clk
0:01:41.2]} 19... Rxd8 {[%clk 0:02:47.4]} 20. Ba3 {[%clk 0:01:17.4]} 20... Bd5
{[%clk 0:02:45.3]} 21. Bf1 {[%clk 0:00:58.2]} 21... Bc6 {[%clk 0:02:42.3]} 22.
Bc1 {[%clk 0:00:54.6]} 22... Qd7 {[%clk 0:02:40.2]} 23. Nc5 {[%clk 0:00:29.1]}
23... Qd5 {[%clk 0:02:39.3]} 0-1

[Event "Late-Titled-Tuesday-Blitz-March-26-2024"]
[Site "Chess.com"]
[Date "2024.03.26"]
[Round "1"]
[White "omeed_87"]
[Black "ChessQueen"]
[Result "1-0"]
[WhiteElo "2415"]
[BlackElo "2703"]
[TimeControl "180+1"]
[EndTime "14:04:12 PDT"]
[Termination "omeed_87 won by resignation"]

1. d4 {[%clk 0:03:00.9]} 1... f5 {[%clk 0:02:55.5]} 2. Nc3 {[%clk 0:02:59.5]}
2... Nf6 {[%clk 0:02:54.5]} 3. Bf4 {[%clk 0:02:59.3]} 3... d5 {[%clk 0:02:49.4]}
4. e3 {[%clk 0:02:56.9]} 4... e6 {[%clk 0:02:46.3]} 5. a3 {[%clk 0:02:55.6]}
5... Bd6 {[%clk 0:02:42.8]} 6. Nf3 {[%clk 0:02:55.4]} 6... O-O {[%clk
0:02:40.8]} 7. Ne5 {[%clk 0:02:53.1]} 7... Nbd7 {[%clk 0:02:38.9]} 8. Qf3 {[%clk
0:02:46.7]} 8... Bxe5 {[%clk 0:02:37.8]} 9. dxe5 {[%clk 0:02:46.5]} 9... Ng4
{[%clk 0:02:36.3]} 10. Qg3 {[%clk 0:02:44.5]} 10... g5 {[%clk 0:02:32.1]} 11. h3
{[%clk 0:02:43.2]} 11... gxf4 {[%clk 0:02:24.8]} 12. exf4 {[%clk 0:02:43.2]}
12... d4 {[%clk 0:02:20]} 13. hxg4 {[%clk 0:02:35.5]} 13... Nc5 {[%clk
0:01:59.7]} 14. gxf5+ {[%clk 0:02:28]} 14... Kh8 {[%clk 0:01:59.7]} 15. f6
{[%clk 0:02:11.3]} 15... Rxf6 {[%clk 0:01:29.4]} 16. exf6 {[%clk 0:01:58.4]}
16... Qxf6 {[%clk 0:01:30.3]} 17. Bd3 {[%clk 0:01:48.8]} 17... Nxd3+ {[%clk
0:01:24]} 18. Qxd3 {[%clk 0:01:48.5]} 18... Qf5 {[%clk 0:01:21.3]} 19. Qxd4+
{[%clk 0:01:40]} 19... Kg8 {[%clk 0:01:20.3]} 20. Qd8+ {[%clk 0:01:33.6]} 20...
Kg7 {[%clk 0:01:19.9]} 21. Qxc7+ {[%clk 0:01:26.8]} 1-0

[Event "Late-Titled-Tuesday-Blitz-March-26-2024"]
[Site "Chess.com"]
[Date "2024.03.26"]
[Round "1"]
[White "Ykow"]
[Black "Msb2"]
[Result "0-1"]
[WhiteElo "2517"]
[BlackElo "3033"]
[TimeControl "180+1"]
[EndTime "14:04:31 PDT"]
[Termination "Msb2 won by resignation"]

1. e4 {[%clk 0:02:56]} 1... e6 {[%clk 0:03:00.2]} 2. d4 {[%clk 0:02:55.2]} 2...
d5 {[%clk 0:03:00.8]} 3. exd5 {[%clk 0:02:56.1]} 3... exd5 {[%clk 0:03:01.7]} 4.
Nf3 {[%clk 0:02:56.9]} 4... Nc6 {[%clk 0:03:02.2]} 5. Bb5 {[%clk 0:02:53.9]}
5... a6 {[%clk 0:03:02]} 6. Bxc6+ {[%clk 0:02:50]} 6... bxc6 {[%clk 0:03:02.9]}
7. O-O {[%clk 0:02:50.4]} 7... Bd6 {[%clk 0:03:03.2]} 8. c4 {[%clk 0:02:49.2]}
8... dxc4 {[%clk 0:03:03.3]} 9. Nbd2 {[%clk 0:02:45.1]} 9... Ne7 {[%clk
0:03:01.3]} 10. Nxc4 {[%clk 0:02:45]} 10... O-O {[%clk 0:03:01.4]} 11. h3 {[%clk
0:02:44]} 11... Be6 {[%clk 0:03:01.3]} 12. b3 {[%clk 0:02:40.6]} 12... Ng6
{[%clk 0:02:58.2]} 13. Be3 {[%clk 0:02:34.9]} 13... Bd5 {[%clk 0:02:56.9]} 14.
Rc1 {[%clk 0:02:33.6]} 14... Re8 {[%clk 0:02:54.3]} 15. Re1 {[%clk 0:02:24.6]}
15... Qf6 {[%clk 0:02:41.5]} 16. Nxd6 {[%clk 0:01:30.6]} 16... cxd6 {[%clk
0:02:42.4]} 17. Nh2 {[%clk 0:01:13.1]} 17... Nh4 {[%clk 0:02:37.6]} 18. Qg4
{[%clk 0:01:01.9]} 18... Nxg2 {[%clk 0:02:20]} 19. Bg5 {[%clk 0:01:00.7]} 19...
Rxe1+ {[%clk 0:01:58.7]} 20. Rxe1 {[%clk 0:01:00.2]} 20... Qg6 {[%clk
0:01:59.6]} 21. Re2 {[%clk 0:00:50.1]} 21... h5 {[%clk 0:01:55.1]} 22. Qg3
{[%clk 0:00:48.4]} 22... h4 {[%clk 0:01:53]} 23. Qg4 {[%clk 0:00:37.8]} 23... f5
{[%clk 0:01:52.7]} 0-1

[Event "Late-Titled-Tuesday-Blitz-March-26-2024"]
[Site "Chess.com"]
[Date "2024.03.26"]
[Round "1"]
[White "Beca95"]
[Black "SameerMujumdar"]
[Result "1-0"]
[WhiteElo "2943"]
[BlackElo "2504"]
[TimeControl "180+1"]
[EndTime "14:04:40 PDT"]
[Termination "Beca95 won by resignation"]

1. b3 {[%clk 0:02:59.5]} 1... Nc6 {[%clk 0:02:58.4]} 2. Bb2 {[%clk 0:02:59.4]}
2... d5 {[%clk 0:02:58.8]} 3. e3 {[%clk 0:02:59.1]} 3... Nf6 {[%clk 0:02:57.6]}
4. f4 {[%clk 0:02:58.3]} 4... Bg4 {[%clk 0:02:56.5]} 5. Be2 {[%clk 0:02:58.3]}
5... Bxe2 {[%clk 0:02:56.5]} 6. Qxe2 {[%clk 0:02:59.2]} 6... e6 {[%clk
0:02:56.3]} 7. Nf3 {[%clk 0:02:59.6]} 7... Be7 {[%clk 0:02:54.9]} 8. d3 {[%clk
0:02:57.9]} 8... O-O {[%clk 0:02:52.3]} 9. Nbd2 {[%clk 0:02:56.5]} 9... Nd7
{[%clk 0:02:51.7]} 10. g4 {[%clk 0:02:54.8]} 10... Bf6 {[%clk 0:02:51.8]} 11. d4
{[%clk 0:02:54.9]} 11... Bh4+ {[%clk 0:02:50.4]} 12. Kd1 {[%clk 0:02:51.9]}
12... Be7 {[%clk 0:02:48.4]} 13. a3 {[%clk 0:02:51.8]} 13... a5 {[%clk
0:02:47.9]} 14. g5 {[%clk 0:02:48.9]} 14... a4 {[%clk 0:02:45.3]} 15. b4 {[%clk
0:02:48.9]} 15... b6 {[%clk 0:02:40]} 16. h4 {[%clk 0:02:41.8]} 16... Bd6 {[%clk
0:02:37.7]} 17. h5 {[%clk 0:02:39.6]} 17... Ne7 {[%clk 0:02:37.7]} 18. b5 {[%clk
0:02:24.3]} 18... Nf5 {[%clk 0:02:35.1]} 19. Rh3 {[%clk 0:02:21]} 19... Qc8
{[%clk 0:02:28]} 20. Nh4 {[%clk 0:02:16.7]} 20... Nxh4 {[%clk 0:02:21.9]} 21.
Rxh4 {[%clk 0:02:17.6]} 21... c5 {[%clk 0:02:15.2]} 22. dxc5 {[%clk 0:02:11.3]}
22... Nxc5 {[%clk 0:02:13.6]} 23. g6 {[%clk 0:02:07]} 23... f6 {[%clk
0:02:05.1]} 24. gxh7+ {[%clk 0:02:00]} 24... Kh8 {[%clk 0:01:55.7]} 25. Qg2
{[%clk 0:01:59.8]} 25... Ra7 {[%clk 0:01:47.6]} 26. h6 {[%clk 0:01:57.5]} 26...
Qe8 {[%clk 0:01:32.9]} 27. Rg4 {[%clk 0:01:39.9]} 27... gxh6 {[%clk 0:01:07.4]}
28. Bxf6+ {[%clk 0:01:36.8]} 1-0

[Event "Late-Titled-Tuesday-Blitz-March-26-2024"]
[Site "Chess.com"]
[Date "2024.03.26"]
[Round "1"]
[White "publicaccountcze"]
[Black "Statham_01"]
[Result "0-1"]
[WhiteElo "2245"]
[BlackElo "2606"]
[TimeControl "180+1"]
[EndTime "14:04:51 PDT"]
[Termination "Statham_01 won by checkmate"]

1. e4 {[%clk 0:02:57.6]} 1... e5 {[%clk 0:02:59.7]} 2. Nf3 {[%clk 0:02:56]} 2...
Nf6 {[%clk 0:03:00]} 3. Nxe5 {[%clk 0:02:52.6]} 3... d5 {[%clk 0:03:00.2]} 4.
exd5 {[%clk 0:02:50.8]} 4... Qxd5 {[%clk 0:03:01.1]} 5. Nf3 {[%clk 0:02:44.5]}
5... Bg4 {[%clk 0:03:00.5]} 6. Nc3 {[%clk 0:02:41.1]} 6... Qh5 {[%clk
0:02:59.6]} 7. Be2 {[%clk 0:02:32.4]} 7... Nc6 {[%clk 0:02:58]} 8. d3 {[%clk
0:02:31.9]} 8... Bd6 {[%clk 0:02:56.8]} 9. Be3 {[%clk 0:02:31.1]} 9... O-O
{[%clk 0:02:53.1]} 10. Qd2 {[%clk 0:02:31.2]} 10... a5 {[%clk 0:02:46]} 11. h3
{[%clk 0:02:30.8]} 11... b5 {[%clk 0:02:37.3]} 12. O-O-O {[%clk 0:02:19.1]}
12... Bd7 {[%clk 0:02:18]} 13. Nd4 {[%clk 0:02:03.3]} 13... Qg6 {[%clk
0:02:11.3]} 14. Ndxb5 {[%clk 0:02:03.5]} 14... Rab8 {[%clk 0:02:08.6]} 15. g4
{[%clk 0:02:03.1]} 15... Bb4 {[%clk 0:02:01.7]} 16. a4 {[%clk 0:01:26.6]} 16...
Nd5 {[%clk 0:01:48.9]} 17. Bf3 {[%clk 0:01:15.7]} 17... Nxc3 {[%clk 0:01:49]}
18. Nxc3 {[%clk 0:01:16.3]} 18... Ne5 {[%clk 0:01:47.7]} 19. Be4 {[%clk
0:01:12.7]} 19... Qd6 {[%clk 0:01:47.1]} 20. f4 {[%clk 0:00:58.8]} 20... Ba3
{[%clk 0:01:39.4]} 21. Nb5 {[%clk 0:00:58.9]} 21... Bxb5 {[%clk 0:01:33.8]} 22.
fxe5 {[%clk 0:00:51.4]} 22... Bxb2+ {[%clk 0:01:33.7]} 23. Kxb2 {[%clk
0:00:48.8]} 23... Bc4+ {[%clk 0:01:33.8]} 24. Kc3 {[%clk 0:00:44.1]} 24... Qb4+
{[%clk 0:01:33.8]} 25. Kd4 {[%clk 0:00:43.6]} 25... c5# {[%clk 0:01:34.7]} 0-1

[Event "Late-Titled-Tuesday-Blitz-March-26-2024"]
[Site "Chess.com"]
[Date "2024.03.26"]
[Round "1"]
[White "m_ezat"]
[Black "lukazz029"]
[Result "1-0"]
[WhiteElo "2554"]
[BlackElo "2046"]
[TimeControl "180+1"]
[EndTime "14:04:52 PDT"]
[Termination "m_ezat won by resignation"]

1. d4 {[%clk 0:02:59.3]} 1... Nf6 {[%clk 0:02:58.8]} 2. c4 {[%clk 0:02:59.3]}
2... g6 {[%clk 0:02:53.4]} 3. Nc3 {[%clk 0:02:59.3]} 3... d6 {[%clk 0:02:48]} 4.
e4 {[%clk 0:02:55.7]} 4... Bg7 {[%clk 0:02:48.4]} 5. Be2 {[%clk 0:02:55.8]} 5...
O-O {[%clk 0:02:48.7]} 6. Bg5 {[%clk 0:02:56.2]} 6... c5 {[%clk 0:02:47.1]} 7.
d5 {[%clk 0:02:55.6]} 7... e6 {[%clk 0:02:43.3]} 8. Qd2 {[%clk 0:02:54.8]} 8...
exd5 {[%clk 0:02:40.1]} 9. exd5 {[%clk 0:02:55.1]} 9... a6 {[%clk 0:02:35.2]}
10. a4 {[%clk 0:02:54.3]} 10... Nbd7 {[%clk 0:02:29.8]} 11. Nf3 {[%clk
0:02:53.2]} 11... Qc7 {[%clk 0:02:25.4]} 12. h3 {[%clk 0:02:51.3]} 12... h5
{[%clk 0:02:24.1]} 13. O-O {[%clk 0:02:51.2]} 13... Nh7 {[%clk 0:02:22.9]} 14.
Bf4 {[%clk 0:02:48.8]} 14... Re8 {[%clk 0:02:23.3]} 15. Bd3 {[%clk 0:02:47.5]}
15... Ndf8 {[%clk 0:02:11.1]} 16. Rfe1 {[%clk 0:02:45.9]} 16... Bd7 {[%clk
0:02:11.4]} 17. Ne4 {[%clk 0:02:45.3]} 17... Be5 {[%clk 0:01:54.2]} 18. Nxe5
{[%clk 0:02:28.2]} 18... dxe5 {[%clk 0:01:55.1]} 19. Be3 {[%clk 0:02:28.4]}
19... f5 {[%clk 0:01:40.1]} 20. d6 {[%clk 0:02:13.2]} 20... Qc6 {[%clk
0:01:32.1]} 21. Nxc5 {[%clk 0:02:13.1]} 21... f4 {[%clk 0:01:30.1]} 22. Be4
{[%clk 0:02:00.8]} 22... fxe3 {[%clk 0:01:25.2]} 23. Qxe3 {[%clk 0:02:00.3]}
23... Qxd6 {[%clk 0:01:23.7]} 24. Rad1 {[%clk 0:02:00.3]} 24... Qe7 {[%clk
0:01:22.5]} 25. Bxb7 {[%clk 0:01:58.7]} 25... Rab8 {[%clk 0:01:21.2]} 26. Bxa6
{[%clk 0:01:55.8]} 26... Rxb2 {[%clk 0:01:16.7]} 27. Nxd7 {[%clk 0:01:55.2]}
27... Nxd7 {[%clk 0:01:15.1]} 28. Bb5 {[%clk 0:01:55.2]} 28... Nhf6 {[%clk
0:01:10]} 29. Qd3 {[%clk 0:01:50]} 29... Qc5 {[%clk 0:01:02.5]} 30. Qxg6+ {[%clk
0:01:49.6]} 30... Kf8 {[%clk 0:01:01]} 31. Bxd7 {[%clk 0:01:48.7]} 31... Nxd7
{[%clk 0:00:54.5]} 32. Qf5+ {[%clk 0:01:43.5]} 32... Kg8 {[%clk 0:00:53.6]} 33.
Rxd7 {[%clk 0:01:43.5]} 1-0

[Event "Late-Titled-Tuesday-Blitz-March-26-2024"]
[Site "Chess.com"]
[Date "2024.03.26"]
[Round "1"]
[White "prime-morty"]
[Black "yujiarun18"]
[Result "1-0"]
[WhiteElo "2569"]
[BlackElo "2118"]
[TimeControl "180+1"]
[EndTime "14:04:58 PDT"]
[Termination "prime-morty won by resignation"]

1. c4 {[%clk 0:03:00.6]} 1... e6 {[%clk 0:02:59.5]} 2. Nc3 {[%clk 0:03:01.2]}
2... d5 {[%clk 0:02:59.9]} 3. e3 {[%clk 0:03:01.6]} 3... Nf6 {[%clk 0:03:00.3]}
4. Nf3 {[%clk 0:03:02.2]} 4... Be7 {[%clk 0:03:00.7]} 5. g4 {[%clk 0:03:01.8]}
5... O-O {[%clk 0:03:01.3]} 6. g5 {[%clk 0:03:01.7]} 6... Ne4 {[%clk 0:03:00.4]}
7. h4 {[%clk 0:03:01.9]} 7... f6 {[%clk 0:02:56.7]} 8. cxd5 {[%clk 0:02:59]}
8... fxg5 {[%clk 0:02:54.5]} 9. Nxe4 {[%clk 0:02:57.8]} 9... g4 {[%clk
0:02:53.8]} 10. Nd4 {[%clk 0:02:34]} 10... exd5 {[%clk 0:02:52.2]} 11. Ng3
{[%clk 0:02:32.7]} 11... Bxh4 {[%clk 0:02:51.8]} 12. Rg1 {[%clk 0:02:25.2]}
12... Qf6 {[%clk 0:02:48.9]} 13. Qe2 {[%clk 0:02:25.2]} 13... b6 {[%clk
0:02:44]} 14. Bg2 {[%clk 0:02:23.4]} 14... c6 {[%clk 0:02:40.4]} 15. b3 {[%clk
0:02:21]} 15... Ba6 {[%clk 0:02:39.1]} 16. d3 {[%clk 0:02:18.9]} 16... Bxd3
{[%clk 0:02:37.5]} 17. Qd2 {[%clk 0:02:17.6]} 17... Ba6 {[%clk 0:02:20.1]} 18.
Bb2 {[%clk 0:02:17.6]} 18... Qf7 {[%clk 0:02:19.3]} 19. Nxc6 {[%clk 0:02:10.5]}
19... Kh8 {[%clk 0:02:09.4]} 20. Bxd5 {[%clk 0:02:07.6]} 20... Qe8 {[%clk
0:02:02.2]} 21. Nh5 {[%clk 0:01:59.5]} 21... Qxh5 {[%clk 0:01:55.8]} 22. O-O-O
{[%clk 0:01:59.1]} 22... Nxc6 {[%clk 0:01:54.6]} 23. Bxc6 {[%clk 0:01:57.1]}
23... Rac8 {[%clk 0:01:54.6]} 24. Qd7 {[%clk 0:01:51.7]} 24... Qc5+ {[%clk
0:01:21.5]} 25. Kb1 {[%clk 0:01:48.5]} 25... Bf6 {[%clk 0:01:22.2]} 26. Bxf6
{[%clk 0:01:35.6]} 26... Rxf6 {[%clk 0:01:22.6]} 27. Be4 {[%clk 0:01:34.9]}
27... Rxf2 {[%clk 0:01:16.7]} 28. Rxg4 {[%clk 0:01:29.6]} 28... Qe5 {[%clk
0:01:01.6]} 29. Qxc8+ {[%clk 0:01:23.3]} 29... Bxc8 {[%clk 0:00:56.6]} 30. Rd8+
{[%clk 0:01:23.3]} 1-0